[Event "FIDE Grand Swiss 2023"]
[Site "Villa Marina, Douglas, Isle of Man, Isle Of Man"]
[Date "2023.11.03"]
[Round "9.51"]
[White "Nguyen, Thai Dai Van"]
[Black "Samunenkov, Ihor"]
[Result "1/2-1/2"]
[TimeControl "40/90 + 30 + 30s/move"]
[WhiteFideId "358878"]
[BlackFideId "14187086"]
[WhiteElo "2618"]
[BlackElo "2531"]

1. d4 {[%clk 01:40:59]} {[%emt 00:00:01]} d5 {[%clk 01:40:46]} {[%emt
00:00:14]} 2. c4 {[%clk 01:41:24]} {[%emt 00:00:04]} e6 {[%clk 01:41:08]}
{[%emt 00:00:09]} 3. Nf3 {[%clk 01:41:12]} {[%emt 00:00:42]} Nf6 {[%clk
01:41:27]} {[%emt 00:00:11]} 4. g3 {[%clk 01:41:35]} {[%emt 00:00:06]} dxc4
{[%clk 01:41:02]} {[%emt 00:00:56]} 5. Bg2 {[%clk 01:41:57]} {[%emt 00:00:08]}
c5 {[%clk 01:41:20]} {[%emt 00:00:13]} 6. O-O {[%clk 01:41:44]} {[%emt
00:00:42]} Nc6 {[%clk 01:41:43]} {[%emt 00:00:07]} 7. Qa4 {[%clk 01:25:26]}
{[%emt 00:16:47]} Bd7 {[%clk 01:42:00]} {[%emt 00:00:13]} 8. Qxc4 {[%clk
01:25:54]} {[%emt 00:00:02]} cxd4 {[%clk 01:41:34]} {[%emt 00:00:56]} 9. Nxd4
{[%clk 01:26:19]} {[%emt 00:00:06]} Rc8 {[%clk 01:41:53]} {[%emt 00:00:11]} 10.
Nc3 {[%clk 01:23:36]} {[%emt 00:03:13]} Nxd4 {[%clk 01:42:02]} {[%emt
00:00:21]} 11. Qxd4 {[%clk 01:24:04]} {[%emt 00:00:02]} Bc5 {[%clk 01:42:21]}
{[%emt 00:00:11]} 12. Qh4 {[%clk 01:24:29]} {[%emt 00:00:05]} Bc6 {[%clk
01:41:54]} {[%emt 00:00:57]} 13. Bxc6+ {[%clk 01:09:44]} {[%emt 00:15:15]} Rxc6
{[%clk 01:42:09]} {[%emt 00:00:15]} 14. Bg5 {[%clk 01:10:11]} {[%emt 00:00:02]}
Be7 {[%clk 01:30:10]} {[%emt 00:12:29]} 15. Rfd1 {[%clk 01:07:14]} {[%emt
00:03:28]} Qa5 {[%clk 01:21:14]} {[%emt 00:09:26]} 16. Ne4 {[%clk 01:07:14]}
{[%emt 00:00:30]} Qe5 {[%clk 01:19:28]} {[%emt 00:02:16]} 17. Nxf6+ {[%clk
01:05:18]} {[%emt 00:02:24]} Bxf6 {[%clk 01:19:25]} {[%emt 00:00:35]} 18. Bxf6
{[%clk 01:05:42]} {[%emt 00:00:06]} Qxf6 {[%clk 01:19:44]} {[%emt 00:00:11]} 19.
Qxf6 {[%clk 01:06:07]} {[%emt 00:00:05]} gxf6 {[%clk 01:20:06]} {[%emt
00:00:07]} 20. Rac1 {[%clk 01:06:35]} {[%emt 00:00:02]} Rxc1 {[%clk 01:17:42]}
21. Rxc1 {[%clk 01:06:37]} {[%emt 00:03:22]} Kd7 {[%clk 01:18:03]} {[%emt
00:00:08]} 22. Kg2 {[%clk 01:06:30]} {[%emt 00:00:38]} Rg8 {[%clk 01:05:07]}
{[%emt 00:13:26]} 23. f4 {[%clk 01:00:18]} {[%emt 00:06:41]} f5 {[%clk
00:56:23]} {[%emt 00:09:14]} 24. Kh3 {[%clk 00:48:50]} {[%emt 00:11:59]} Rg6
{[%clk 00:50:23]} {[%emt 00:06:29]} 25. Rd1+ {[%clk 00:43:19]} {[%emt
00:06:01]} Kc7 {[%clk 00:49:13]} {[%emt 00:01:40]} 26. Rc1+ {[%clk 00:43:00]}
{[%emt 00:00:50]} Kd7 {[%clk 00:49:27]} {[%emt 00:00:16]} 27. Rc3 {[%clk
00:43:25]} {[%emt 00:00:06]} a5 {[%clk 00:27:44]} {[%emt 00:22:12]} 28. Rc2
{[%clk 00:28:00]} {[%emt 00:15:55]} Rh6+ {[%clk 00:25:52]} {[%emt 00:02:22]} 29.
Kg2 {[%clk 00:27:43]} {[%emt 00:00:49]} Rg6 {[%clk 00:26:05]} {[%emt 00:00:15]}
30. Kf3 {[%clk 00:26:24]} {[%emt 00:01:49]} Rg8 {[%clk 00:24:29]} {[%emt
00:02:06]} 31. Kg2 {[%clk 00:17:50]} {[%emt 00:09:05]} Rg6 {[%clk 00:20:50]}
{[%emt 00:04:09]} 32. Rc5 {[%clk 00:17:30]} {[%emt 00:00:50]} b6 {[%clk
00:21:01]} {[%emt 00:00:19]} 33. Rc2 {[%clk 00:17:41]} {[%emt 00:00:19]} Rg8
{[%clk 00:18:34]} {[%emt 00:02:57]} 34. Kh3 {[%clk 00:16:17]} {[%emt 00:01:54]}
Rg6 {[%clk 00:14:26]} {[%emt 00:04:39]} 35. Rd2+ {[%clk 00:16:11]} {[%emt
00:00:35]} Ke7 {[%clk 00:10:26]} {[%emt 00:04:30]} 36. Rd3 {[%clk 00:07:55]}
{[%emt 00:08:46]} Rg8 {[%clk 00:09:07]} {[%emt 00:01:48]} 37. Rb3 {[%clk
00:07:18]} {[%emt 00:01:07]} Rc8 {[%clk 00:01:37]} {[%emt 00:08:01]} 38. Rxb6
{[%clk 00:03:35]} {[%emt 00:04:13]} Rc2 {[%clk 00:02:00]} {[%emt 00:00:06]} 39.
e3 {[%clk 00:03:55]} {[%emt 00:00:11]} Kf6 {[%clk 00:01:01]} {[%emt 00:01:29]}
40. Rb5 {[%clk 00:00:51]} {[%emt 00:03:34]} Kg6 {[%clk 00:00:40]} {[%emt
00:00:51]} 41. a4 {[%clk 00:37:36]} {[%emt 00:13:46]} Re2 {[%clk 00:45:02]}
{[%emt 00:06:07]} 42. Rb3 {[%clk 00:25:02]} {[%emt 00:13:05]} h5 {[%clk
00:37:36]} {[%emt 00:07:55]} 43. Rb5 {[%clk 00:25:26]} {[%emt 00:00:07]} Rd2
{[%clk 00:34:16]} {[%emt 00:03:49]} 44. Rxa5 {[%clk 00:15:40]} {[%emt
00:10:16]} Rxb2 {[%emt 00:00:15]} 45. Ra8 {[%clk 00:16:01]} Ra2 {[%clk
00:29:58]} {[%emt 00:05:12]} 46. Ra5 {[%clk 00:08:20]} {[%emt 00:08:12]} Kh6
{[%clk 00:29:17]} {[%emt 00:01:10]} 47. Ra7 {[%clk 00:05:54]} {[%emt 00:02:56]}
Kg6 {[%clk 00:28:32]} {[%emt 00:01:15]} 48. Ra6 {[%clk 00:06:20]} {[%emt
00:00:06]} Kg7 {[%clk 00:28:23]} {[%emt 00:00:38]} 49. a5 {[%clk 00:06:35]}
{[%emt 00:00:15]} Kg6 {[%clk 00:28:03]} {[%emt 00:00:49]} 50. Ra7 {[%clk
00:06:53]} {[%emt 00:00:13]} Kf6 {[%clk 00:28:00]} {[%emt 00:00:33]} 51. a6
{[%clk 00:06:43]} {[%emt 00:00:40]} Kg6 {[%clk 00:27:37]} {[%emt 00:00:52]} 52.
Ra8 {[%clk 00:07:08]} {[%emt 00:00:06]} Kf6 {[%clk 00:27:19]} {[%emt 00:00:47]}
53. Ra7 {[%clk 00:05:18]} {[%emt 00:02:20]} Kg6 {[%clk 00:27:38]} {[%emt
00:00:10]} 54. Ra8 {[%clk 00:05:42]} {[%emt 00:00:07]} Kf6 {[%clk 00:27:51]}
{[%emt 00:00:16]} 55. Rh8 {[%clk 00:02:44]} {[%emt 00:03:28]} Rxa6 {[%clk
00:23:48]} {[%emt 00:04:33]} 56. Rxh5 {[%clk 00:03:12]} {[%emt 00:00:03]} Ra3
{[%clk 00:23:57]} {[%emt 00:00:20]} 57. e4 {[%clk 00:02:06]} {[%emt 00:01:37]}
fxe4 {[%clk 00:24:17]} {[%emt 00:00:09]} 58. Re5 {[%clk 00:02:29]} {[%emt
00:00:06]} Ra4 {[%clk 00:23:00]} {[%emt 00:01:47]} 59. g4 {[%clk 00:02:10]}
{[%emt 00:00:49]} Ra3+ {[%clk 00:21:47]} {[%emt 00:01:44]} 60. Kg2 {[%clk
00:01:43]} {[%emt 00:00:57]} Ra2+ {[%clk 00:21:58]} {[%emt 00:00:19]} 61. Kg3
{[%clk 00:01:51]} {[%emt 00:00:22]} Ra3+ {[%clk 00:21:52]} {[%emt 00:00:34]} 62.
Kh4 {[%clk 00:11:29]} {[%emt 00:05:52]} Re3 {[%clk 00:37:08]} {[%emt 00:00:15]}
63. h3 {[%clk 00:10:02]} {[%emt 00:01:57]} Kg6 {[%clk 00:36:44]} {[%emt
00:00:54]} 64. Rg5+ {[%clk 00:10:08]} {[%emt 00:00:24]} Kf6 {[%clk 00:36:58]}
{[%emt 00:00:17]} 65. Re5 {[%clk 00:07:27]} {[%emt 00:03:10]} Kg6 {[%clk
00:37:07]} {[%emt 00:00:21]} 66. Rg5+ {[%clk 00:07:26]} {[%emt 00:00:31]} Kf6
{[%clk 00:37:28]} {[%emt 00:00:10]} 1/2-1/2